[Event "Live Chess"]
[Site "Chess.com"]
[Date "2023.05.21"]
[Round "-"]
[White "JackRudd"]
[Black "wot-not"]
[Result "1-0"]
[WhiteElo "2486"]
[BlackElo "1536"]
[TimeControl "300"]
[EndTime "5:31:03 PDT"]
[Termination "JackRudd won by resignation"]

1. d4 {[%clk 0:04:58.9]} 1... Nf6 {[%clk 0:04:56.9]} 2. c4 {[%clk 0:04:58]} 2...
g6 {[%clk 0:04:51.3]} 3. Nc3 {[%clk 0:04:56.9]} 3... d5 {[%clk 0:04:50.6]} 4.
Nf3 {[%clk 0:04:53.3]} 4... Bg7 {[%clk 0:04:48.7]} 5. Qb3 {[%clk 0:04:52.5]}
5... dxc4 {[%clk 0:04:47.3]} 6. Qxc4 {[%clk 0:04:51.7]} 6... O-O {[%clk
0:04:45.8]} 7. e4 {[%clk 0:04:50.7]} 7... Bg4 {[%clk 0:04:41.1]} 8. Be3 {[%clk
0:04:41.3]} 8... Nbd7 {[%clk 0:04:36]} 9. Be2 {[%clk 0:04:34.6]} 9... Nb6 {[%clk
0:04:34.5]} 10. Qb3 {[%clk 0:04:33.8]} 10... c6 {[%clk 0:04:19.2]} 11. Rd1
{[%clk 0:04:31.4]} 11... Qc7 {[%clk 0:04:02]} 12. O-O {[%clk 0:04:27.4]} 12...
Rad8 {[%clk 0:04:00.6]} 13. Qc2 {[%clk 0:04:23.8]} 13... Bxf3 {[%clk 0:03:42]}
14. Bxf3 {[%clk 0:04:22.3]} 14... e5 {[%clk 0:03:38.7]} 15. Ne2 {[%clk
0:04:15.4]} 15... Rfe8 {[%clk 0:03:28]} 16. dxe5 {[%clk 0:04:13.5]} 16... Qxe5
{[%clk 0:03:22]} 17. b3 {[%clk 0:04:09]} 17... Qe7 {[%clk 0:03:02.5]} 18. Bc5
{[%clk 0:03:59.1]} 18... Qc7 {[%clk 0:02:41.6]} 19. Ng3 {[%clk 0:03:52.1]} 19...
Rxd1 {[%clk 0:02:31.7]} 20. Rxd1 {[%clk 0:03:48.5]} 20... Rd8 {[%clk 0:02:26.8]}
21. Rd2 {[%clk 0:03:41.6]} 21... h5 {[%clk 0:02:15.5]} 22. a4 {[%clk 0:03:30.5]}
22... Nc8 {[%clk 0:02:04.5]} 23. Qd1 {[%clk 0:03:26.2]} 23... Rxd2 {[%clk
0:02:01.4]} 24. Qxd2 {[%clk 0:03:23.6]} 24... b6 {[%clk 0:01:59.3]} 25. Be3
{[%clk 0:03:17.6]} 25... c5 {[%clk 0:01:44.6]} 26. Bf4 {[%clk 0:03:08.8]} 26...
Qd7 {[%clk 0:01:39.2]} 27. Qxd7 {[%clk 0:03:06.1]} 27... Nxd7 {[%clk 0:01:38.4]}
28. Be2 {[%clk 0:03:03.4]} 28... Bd4 {[%clk 0:01:19.4]} 29. Bb5 {[%clk
0:03:01.2]} 29... Nf6 {[%clk 0:01:13.7]} 30. Bg5 {[%clk 0:02:49.5]} 30... Kg7
{[%clk 0:01:07.3]} 31. Kf1 {[%clk 0:02:48]} 31... Nd6 {[%clk 0:01:00]} 32. Bd3
{[%clk 0:02:46.8]} 32... Nd7 {[%clk 0:00:49.5]} 33. f4 {[%clk 0:02:41.6]} 33...
f6 {[%clk 0:00:48.1]} 34. Bh4 {[%clk 0:02:39.9]} 34... Kh6 {[%clk 0:00:45.2]}
35. Ne2 {[%clk 0:02:35.7]} 35... g5 {[%clk 0:00:44.3]} 36. Bg3 {[%clk
0:02:31.5]} 36... g4 {[%clk 0:00:37.8]} 37. Be1 {[%clk 0:02:24.5]} 37... Nf8
{[%clk 0:00:27.9]} 38. Nxd4 {[%clk 0:02:23]} 38... cxd4 {[%clk 0:00:26.6]} 39.
Bb4 {[%clk 0:02:22]} 39... Nxe4 {[%clk 0:00:22.5]} 40. Bxf8+ {[%clk 0:02:20.2]}
40... Kg6 {[%clk 0:00:20.3]} 1-0

[Event "Live Chess"]
[Site "Chess.com"]
[Date "2023.05.21"]
[Round "-"]
[White "CrypticF1"]
[Black "PantherCal"]
[Result "0-1"]
[WhiteElo "446"]
[BlackElo "1775"]
[TimeControl "300"]
[EndTime "5:31:03 PDT"]
[Termination "PantherCal won by checkmate"]

1. e4 {[%clk 0:04:58.9]} 1... d5 {[%clk 0:04:58.9]} 2. exd5 {[%clk 0:04:58]}
2... Qxd5 {[%clk 0:04:58.8]} 3. Nc3 {[%clk 0:04:57]} 3... Qa5 {[%clk 0:04:58.3]}
4. Nf3 {[%clk 0:04:56]} 4... Nf6 {[%clk 0:04:58]} 5. Bd3 {[%clk 0:04:49.8]} 5...
Bg4 {[%clk 0:04:55.6]} 6. O-O {[%clk 0:04:45.4]} 6... c6 {[%clk 0:04:54.4]} 7.
h3 {[%clk 0:04:42.6]} 7... Bh5 {[%clk 0:04:52.9]} 8. Bc4 {[%clk 0:04:33.1]} 8...
e6 {[%clk 0:04:51.2]} 9. d4 {[%clk 0:04:32]} 9... Nbd7 {[%clk 0:04:49.9]} 10. g4
{[%clk 0:04:20.8]} 10... Nxg4 {[%clk 0:04:47.4]} 11. hxg4 {[%clk 0:04:19.4]}
11... Bxg4 {[%clk 0:04:47.3]} 12. Be2 {[%clk 0:04:11.6]} 12... Qh5 {[%clk
0:04:45.8]} 13. Kg2 {[%clk 0:04:00]} 13... Nf6 {[%clk 0:04:44.1]} 14. Rh1 {[%clk
0:03:58.8]} 14... Qa5 {[%clk 0:04:13.7]} 15. Bd2 {[%clk 0:03:50]} 15... Bd6
{[%clk 0:04:12.8]} 16. Nb1 {[%clk 0:03:29.8]} 16... Qc7 {[%clk 0:04:07.8]} 17.
Nc3 {[%clk 0:03:26.2]} 17... O-O-O {[%clk 0:04:06.5]} 18. a3 {[%clk 0:03:20.1]}
18... h5 {[%clk 0:04:02.3]} 19. Ng5 {[%clk 0:03:12.2]} 19... Bf4 {[%clk
0:03:45.1]} 20. Bxf4 {[%clk 0:03:08.2]} 20... Qxf4 {[%clk 0:03:45]} 21. Bxg4
{[%clk 0:02:47.6]} 21... Nxg4 {[%clk 0:03:37.8]} 22. f3 {[%clk 0:02:41.4]} 22...
Ne3+ {[%clk 0:03:35.2]} 23. Kf2 {[%clk 0:02:35]} 23... Nxd1+ {[%clk 0:03:35.1]}
24. Nxd1 {[%clk 0:02:33.8]} 24... Qxg5 {[%clk 0:03:31.7]} 25. Ne3 {[%clk
0:02:30.7]} 25... Rxd4 {[%clk 0:03:29.1]} 26. Rag1 {[%clk 0:02:29.3]} 26... Rd2+
{[%clk 0:03:28]} 27. Kf1 {[%clk 0:02:26.9]} 27... Qxe3 {[%clk 0:03:27.2]} 28.
Rxg7 {[%clk 0:02:24.3]} 28... Qf2# {[%clk 0:03:25.9]} 0-1

[Event "Live Chess"]
[Site "Chess.com"]
[Date "2023.05.21"]
[Round "-"]
[White "The_Straightforward_Rook"]
[Black "NotHarryV"]
[Result "1-0"]
[WhiteElo "1990"]
[BlackElo "1508"]
[TimeControl "300"]
[EndTime "5:31:04 PDT"]
[Termination "The_Straightforward_Rook won by resignation"]

1. e4 {[%clk 0:04:59.2]} 1... Nf6 {[%clk 0:04:58.2]} 2. Bc4 {[%clk 0:04:56.4]}
2... e6 {[%clk 0:04:56.7]} 3. e5 {[%clk 0:04:53]} 3... Nd5 {[%clk 0:04:51.6]} 4.
Nc3 {[%clk 0:04:52.5]} 4... Nxc3 {[%clk 0:04:49.8]} 5. dxc3 {[%clk 0:04:51.1]}
5... d5 {[%clk 0:04:48.9]} 6. Bd3 {[%clk 0:04:48.3]} 6... c5 {[%clk 0:04:44.5]}
7. Qg4 {[%clk 0:04:44.8]} 7... Nc6 {[%clk 0:04:42.1]} 8. Nf3 {[%clk 0:04:43]}
8... Qc7 {[%clk 0:04:39.3]} 9. Bf4 {[%clk 0:04:41.2]} 9... c4 {[%clk 0:04:32.1]}
10. Be2 {[%clk 0:04:39.1]} 10... Ne7 {[%clk 0:04:22.8]} 11. Nd4 {[%clk
0:04:30.8]} 11... Nc6 {[%clk 0:04:19.8]} 12. O-O {[%clk 0:04:26.7]} 12... Bd7
{[%clk 0:04:16]} 13. h4 {[%clk 0:04:23.3]} 13... h5 {[%clk 0:04:12.7]} 14. Qg3
{[%clk 0:04:21.6]} 14... Qd8 {[%clk 0:04:00.1]} 15. Rfd1 {[%clk 0:04:15.5]}
15... Qb6 {[%clk 0:03:51.2]} 16. b3 {[%clk 0:04:10.8]} 16... Nxd4 {[%clk
0:03:41.6]} 17. cxd4 {[%clk 0:04:05]} 17... cxb3 {[%clk 0:03:36.3]} 18. axb3
{[%clk 0:04:03.9]} 18... O-O-O {[%clk 0:03:19.4]} 19. c4 {[%clk 0:04:02.3]}
19... dxc4 {[%clk 0:03:11.1]} 20. bxc4 {[%clk 0:04:02.2]} 20... Kb8 {[%clk
0:03:03.3]} 21. Be3 {[%clk 0:03:56.7]} 21... Be7 {[%clk 0:02:38.1]} 22. Rdb1
{[%clk 0:03:53.3]} 22... Qc7 {[%clk 0:02:34.1]} 23. d5 {[%clk 0:03:52]} 23...
Bc5 {[%clk 0:02:29.4]} 24. d6 {[%clk 0:03:48.4]} 24... Qc6 {[%clk 0:02:22.4]}
25. Bf3 {[%clk 0:03:47.3]} 1-0

[Event "Live Chess"]
[Site "Chess.com"]
[Date "2023.05.21"]
[Round "-"]
[White "GMHarry-youtube"]
[Black "gmnorfolk"]
[Result "0-1"]
[WhiteElo "2032"]
[BlackElo "2129"]
[TimeControl "300"]
[EndTime "5:31:27 PDT"]
[Termination "gmnorfolk won by checkmate"]

1. e4 {[%clk 0:04:59.3]} 1... e5 {[%clk 0:04:58.1]} 2. Nf3 {[%clk 0:04:58.7]}
2... Nc6 {[%clk 0:04:57.4]} 3. Bc4 {[%clk 0:04:58]} 3... Nf6 {[%clk 0:04:55.8]}
4. d3 {[%clk 0:04:57.1]} 4... Bc5 {[%clk 0:04:52.8]} 5. c3 {[%clk 0:04:55.9]}
5... O-O {[%clk 0:04:52]} 6. O-O {[%clk 0:04:49.9]} 6... d5 {[%clk 0:04:51]} 7.
exd5 {[%clk 0:04:48.3]} 7... Nxd5 {[%clk 0:04:50.9]} 8. Re1 {[%clk 0:04:48]}
8... Bg4 {[%clk 0:04:48.5]} 9. h3 {[%clk 0:04:44.2]} 9... Bh5 {[%clk 0:04:47.6]}
10. g4 {[%clk 0:04:43.3]} 10... Bg6 {[%clk 0:04:46.8]} 11. Nxe5 {[%clk
0:04:38.6]} 11... Nxe5 {[%clk 0:04:39.4]} 12. Rxe5 {[%clk 0:04:36.9]} 12... c6
{[%clk 0:04:36.9]} 13. d4 {[%clk 0:04:34.3]} 13... Bd6 {[%clk 0:04:33.8]} 14.
Re1 {[%clk 0:04:29.4]} 14... Qh4 {[%clk 0:04:30.2]} 15. Kg2 {[%clk 0:04:22]}
15... h5 {[%clk 0:04:21.7]} 16. Bxd5 {[%clk 0:04:20.5]} 16... cxd5 {[%clk
0:04:15.7]} 17. Nd2 {[%clk 0:04:17.7]} 17... hxg4 {[%clk 0:03:57.8]} 18. Qxg4
{[%clk 0:04:13]} 18... Qf6 {[%clk 0:03:53.6]} 19. Nf3 {[%clk 0:04:09.5]} 19...
Be4 {[%clk 0:03:52.4]} 20. Bg5 {[%clk 0:04:04]} 20... Bxf3+ {[%clk 0:03:48.9]}
21. Kg1 {[%clk 0:03:58.8]} 21... Bxg4 {[%clk 0:03:46.6]} 22. Bxf6 {[%clk
0:03:57.4]} 22... gxf6 {[%clk 0:03:44.9]} 23. hxg4 {[%clk 0:03:57.3]} 23... Rfe8
{[%clk 0:03:44]} 24. f3 {[%clk 0:03:56.5]} 24... Kf8 {[%clk 0:03:40.9]} 25. Kf2
{[%clk 0:03:55.3]} 25... Rxe1 {[%clk 0:03:39.9]} 26. Rxe1 {[%clk 0:03:55.2]}
26... Re8 {[%clk 0:03:39.3]} 27. Rh1 {[%clk 0:03:54.7]} 27... Kg7 {[%clk
0:03:38.5]} 28. Rh5 {[%clk 0:03:51.8]} 28... Rd8 {[%clk 0:03:35]} 29. Ke2 {[%clk
0:03:48.5]} 29... Bf8 {[%clk 0:03:32.8]} 30. Kd3 {[%clk 0:03:47.1]} 30... b5
{[%clk 0:03:28.5]} 31. b3 {[%clk 0:03:43.6]} 31... a5 {[%clk 0:03:26.6]} 32. f4
{[%clk 0:03:34.5]} 32... a4 {[%clk 0:03:20.7]} 33. b4 {[%clk 0:03:31.1]} 33...
Be7 {[%clk 0:03:12.4]} 34. a3 {[%clk 0:03:29.5]} 34... Rd7 {[%clk 0:03:02.5]}
35. Rh1 {[%clk 0:03:19.3]} 35... Bd6 {[%clk 0:03:00]} 36. f5 {[%clk 0:03:15.1]}
36... Re7 {[%clk 0:02:55.7]} 37. Rf1 {[%clk 0:02:58.7]} 37... Bg3 {[%clk
0:02:49.1]} 38. g5 {[%clk 0:02:56.8]} 38... Bh4 {[%clk 0:02:46.5]} 39. gxf6+
{[%clk 0:02:51.8]} 39... Kxf6 {[%clk 0:02:44.1]} 40. Rh1 {[%clk 0:02:50.2]}
40... Bg5 {[%clk 0:02:41.9]} 41. Rf1 {[%clk 0:02:29.6]} 41... Re3+ {[%clk
0:02:38.5]} 42. Kc2 {[%clk 0:02:25.9]} 42... Re2+ {[%clk 0:02:37.4]} 43. Kb1
{[%clk 0:02:20.8]} 43... Rg2 {[%clk 0:02:32.1]} 44. Rf3 {[%clk 0:02:15.6]} 44...
Re2 {[%clk 0:02:25.3]} 45. Rf1 {[%clk 0:02:12.5]} 45... Re4 {[%clk 0:02:19.8]}
46. Rh1 {[%clk 0:01:55.1]} 46... Re8 {[%clk 0:02:14.9]} 47. Rf1 {[%clk
0:01:51.3]} 47... Rh8 {[%clk 0:02:03.9]} 48. Re1 {[%clk 0:01:47]} 48... Bf4
{[%clk 0:02:02.7]} 49. Kc2 {[%clk 0:01:39.8]} 49... Rh2+ {[%clk 0:01:59.1]} 50.
Kb1 {[%clk 0:01:37.1]} 50... Bd2 {[%clk 0:01:52.7]} 51. Re5 {[%clk 0:01:35.1]}
51... Bxc3 {[%clk 0:01:45.1]} 52. Rxd5 {[%clk 0:01:31.4]} 52... Rb2+ {[%clk
0:01:41.8]} 53. Kc1 {[%clk 0:01:29.3]} 53... Rb3 {[%clk 0:01:33.4]} 54. Rxb5
{[%clk 0:01:24]} 54... Bxd4 {[%clk 0:01:30.2]} 55. Rd5 {[%clk 0:01:18.8]} 55...
Bc3 {[%clk 0:01:24.3]} 56. b5 {[%clk 0:00:52.6]} 56... Bb2+ {[%clk 0:01:22]} 57.
Kc2 {[%clk 0:00:49.7]} 57... Bxa3 {[%clk 0:01:19.9]} 58. Rd4 {[%clk 0:00:45.9]}
58... Rxb5 {[%clk 0:01:18.1]} 59. Rxa4 {[%clk 0:00:44.6]} 59... Bd6 {[%clk
0:01:17.2]} 60. Kd2 {[%clk 0:00:41.8]} 60... Rxf5 {[%clk 0:01:15.4]} 61. Ke2
{[%clk 0:00:41.3]} 61... Be5 {[%clk 0:01:12.8]} 62. Ra6+ {[%clk 0:00:40.2]}
62... Kg5 {[%clk 0:01:11.3]} 63. Ra4 {[%clk 0:00:38.3]} 63... f6 {[%clk
0:01:10.6]} 64. Ra8 {[%clk 0:00:35.7]} 64... Rf4 {[%clk 0:01:08.1]} 65. Rg8+
{[%clk 0:00:33]} 65... Kf5 {[%clk 0:01:07.1]} 66. Ke3 {[%clk 0:00:32.1]} 66...
Ra4 {[%clk 0:01:04.4]} 67. Kf2 {[%clk 0:00:29.9]} 67... Ke4 {[%clk 0:01:01.8]}
68. Rg4+ {[%clk 0:00:28.3]} 68... Bf4 {[%clk 0:00:59.7]} 69. Rg6 {[%clk
0:00:27.3]} 69... Ra2+ {[%clk 0:00:57.9]} 70. Kf1 {[%clk 0:00:24.9]} 70... f5
{[%clk 0:00:57.3]} 71. Re6+ {[%clk 0:00:23.2]} 71... Kf3 {[%clk 0:00:56.4]} 72.
Re1 {[%clk 0:00:22.8]} 72... Be3 {[%clk 0:00:49.8]} 73. Rb1 {[%clk 0:00:20.7]}
73... Rc2 {[%clk 0:00:46.7]} 74. Re1 {[%clk 0:00:19.1]} 74... Rc1 {[%clk
0:00:41.1]} 75. Rxc1 {[%clk 0:00:14.8]} 75... Bxc1 {[%clk 0:00:40.1]} 76. Kg1
{[%clk 0:00:14.5]} 76... Ke2 {[%clk 0:00:38.7]} 77. Kh1 {[%clk 0:00:13.6]} 77...
f4 {[%clk 0:00:37.9]} 78. Kg1 {[%clk 0:00:13]} 78... f3 {[%clk 0:00:37]} 79. Kh1
{[%clk 0:00:11.5]} 79... f2 {[%clk 0:00:36.1]} 80. Kh2 {[%clk 0:00:10]} 80...
Ba3 {[%clk 0:00:32]} 81. Kg3 {[%clk 0:00:08.4]} 81... f1=Q {[%clk 0:00:31.2]}
82. Kg4 {[%clk 0:00:08.3]} 82... Qf3+ {[%clk 0:00:29.9]} 83. Kg5 {[%clk
0:00:08.2]} 83... Ke3 {[%clk 0:00:28.8]} 84. Kg6 {[%clk 0:00:08.1]} 84... Ke4
{[%clk 0:00:27.5]} 85. Kg7 {[%clk 0:00:08]} 85... Ke5 {[%clk 0:00:26.4]} 86. Kg8
{[%clk 0:00:07.9]} 86... Kf6 {[%clk 0:00:24.1]} 87. Kh7 {[%clk 0:00:05.6]} 87...
Qh5+ {[%clk 0:00:22.6]} 88. Kg8 {[%clk 0:00:05]} 88... Qf7+ {[%clk 0:00:21.3]}
89. Kh8 {[%clk 0:00:04.3]} 89... Qg7# {[%clk 0:00:20.9]} 0-1

[Event "Live Chess"]
[Site "Chess.com"]
[Date "2023.05.21"]
[Round "-"]
[White "yarek"]
[Black "MJMykh"]
[Result "1-0"]
[WhiteElo "1868"]
[BlackElo "1173"]
[TimeControl "300"]
[EndTime "5:31:33 PDT"]
[Termination "yarek won by resignation"]

1. e4 {[%clk 0:04:53.8]} 1... e5 {[%clk 0:04:58.7]} 2. Nf3 {[%clk 0:04:51.4]}
2... Nc6 {[%clk 0:04:57.7]} 3. Bc4 {[%clk 0:04:48.6]} 3... Bc5 {[%clk
0:04:56.7]} 4. c3 {[%clk 0:04:45.7]} 4... h6 {[%clk 0:04:54]} 5. d4 {[%clk
0:04:44.7]} 5... exd4 {[%clk 0:04:53.7]} 6. cxd4 {[%clk 0:04:43.4]} 6... Bb4+
{[%clk 0:04:53.4]} 7. Bd2 {[%clk 0:04:41.1]} 7... Bxd2+ {[%clk 0:04:52.9]} 8.
Nbxd2 {[%clk 0:04:37.1]} 8... Nf6 {[%clk 0:04:52.4]} 9. e5 {[%clk 0:04:07.5]}
9... Ng8 {[%clk 0:04:47.8]} 10. d5 {[%clk 0:03:59]} 10... Na5 {[%clk 0:04:45.6]}
11. O-O {[%clk 0:03:43]} 11... Nxc4 {[%clk 0:04:43.2]} 12. Nxc4 {[%clk
0:03:42.8]} 12... Ne7 {[%clk 0:04:40.5]} 13. d6 {[%clk 0:03:31.9]} 13... cxd6
{[%clk 0:04:39.1]} 14. Nxd6+ {[%clk 0:03:16.6]} 14... Kf8 {[%clk 0:04:36.8]} 15.
Qb3 {[%clk 0:03:09.3]} 15... Kg8 {[%clk 0:04:24.1]} 16. Qxf7+ {[%clk 0:02:56.3]}
16... Kh7 {[%clk 0:04:22.5]} 17. Qh5 {[%clk 0:02:24.4]} 17... g6 {[%clk
0:04:18.6]} 18. Qh3 {[%clk 0:01:54]} 18... Nf5 {[%clk 0:04:08.6]} 19. Nf7 {[%clk
0:01:42.4]} 1-0

[Event "Live Chess"]
[Site "Chess.com"]
[Date "2023.05.21"]
[Round "-"]
[White "BillythekidFellowes"]
[Black "Long1968"]
[Result "1-0"]
[WhiteElo "2071"]
[BlackElo "954"]
[TimeControl "300"]
[EndTime "5:31:35 PDT"]
[Termination "BillythekidFellowes won on time"]

1. e4 {[%clk 0:04:58.1]} 1... e6 {[%clk 0:04:57.1]} 2. Nf3 {[%clk 0:04:58]} 2...
d5 {[%clk 0:04:53.2]} 3. exd5 {[%clk 0:04:51.9]} 3... exd5 {[%clk 0:04:49.5]} 4.
d4 {[%clk 0:04:51.8]} 4... Nf6 {[%clk 0:04:45.9]} 5. Nc3 {[%clk 0:04:49.3]} 5...
Bg4 {[%clk 0:04:40.6]} 6. Bf4 {[%clk 0:04:45.3]} 6... Qd7 {[%clk 0:04:30.1]} 7.
Bd3 {[%clk 0:04:42.6]} 7... Bb4 {[%clk 0:04:18.6]} 8. O-O {[%clk 0:04:40.3]}
8... Bxc3 {[%clk 0:04:09.9]} 9. bxc3 {[%clk 0:04:28.1]} 9... O-O {[%clk
0:03:57.8]} 10. h3 {[%clk 0:04:23]} 10... Be6 {[%clk 0:03:29.3]} 11. Ne5 {[%clk
0:04:11.9]} 11... Qd8 {[%clk 0:03:01]} 12. Bg5 {[%clk 0:04:07.7]} 12... h6
{[%clk 0:02:48.1]} 13. Bh4 {[%clk 0:04:00.2]} 13... g5 {[%clk 0:02:34.6]} 14.
Bg3 {[%clk 0:03:52.6]} 14... Ne4 {[%clk 0:02:26.4]} 15. Bxe4 {[%clk 0:03:43.4]}
15... dxe4 {[%clk 0:02:20.7]} 16. Qh5 {[%clk 0:03:42.1]} 16... Kg7 {[%clk
0:01:52.6]} 17. f4 {[%clk 0:03:36.1]} 17... Nd7 {[%clk 0:01:30.2]} 18. f5 {[%clk
0:03:28.5]} 18... Nf6 {[%clk 0:01:13]} 19. Qe2 {[%clk 0:03:25.6]} 19... Bd5
{[%clk 0:01:03]} 20. Ng4 {[%clk 0:03:18.5]} 20... Re8 {[%clk 0:00:13.7]} 21. Be5
{[%clk 0:03:14.4]} 1-0

[Event "Live Chess"]
[Site "Chess.com"]
[Date "2023.05.21"]
[Round "-"]
[White "MarkLim1"]
[Black "tpm07"]
[Result "0-1"]
[WhiteElo "1704"]
[BlackElo "1945"]
[TimeControl "300"]
[EndTime "5:31:39 PDT"]
[Termination "tpm07 won by resignation"]

1. d4 {[%clk 0:04:59]} 1... Nf6 {[%clk 0:04:58]} 2. Nf3 {[%clk 0:04:58.4]} 2...
e6 {[%clk 0:04:57.1]} 3. e3 {[%clk 0:04:56.8]} 3... c5 {[%clk 0:04:53.9]} 4. Bd3
{[%clk 0:04:55.2]} 4... b6 {[%clk 0:04:51.6]} 5. c4 {[%clk 0:04:53.3]} 5... Bb7
{[%clk 0:04:48.6]} 6. Nc3 {[%clk 0:04:52.5]} 6... cxd4 {[%clk 0:04:46.4]} 7.
exd4 {[%clk 0:04:51.3]} 7... d5 {[%clk 0:04:45.3]} 8. cxd5 {[%clk 0:04:50.3]}
8... Nxd5 {[%clk 0:04:44]} 9. O-O {[%clk 0:04:49.1]} 9... Be7 {[%clk 0:04:41]}
10. Ne5 {[%clk 0:04:47.3]} 10... Nc6 {[%clk 0:04:28.6]} 11. f4 {[%clk
0:04:39.5]} 11... Nxd4 {[%clk 0:04:06.5]} 12. Bxh7 {[%clk 0:04:36.3]} 12... Nxc3
{[%clk 0:03:51.3]} 13. bxc3 {[%clk 0:04:32.8]} 13... Nf5 {[%clk 0:03:45.1]} 14.
Bxf5 {[%clk 0:04:26.4]} 14... Qxd1 {[%clk 0:03:40.6]} 15. Rxd1 {[%clk
0:04:23.8]} 15... exf5 {[%clk 0:03:39.9]} 16. Bb2 {[%clk 0:04:06.6]} 16... O-O
{[%clk 0:03:30.6]} 17. Rd7 {[%clk 0:04:01.6]} 17... Bc5+ {[%clk 0:03:29.4]} 18.
Kh1 {[%clk 0:03:59.6]} 18... Bc8 {[%clk 0:03:26.2]} 19. Rdd1 {[%clk 0:03:35.2]}
19... Be6 {[%clk 0:03:23.4]} 20. a4 {[%clk 0:03:30]} 20... Rad8 {[%clk 0:03:16]}
21. Nc6 {[%clk 0:03:17.6]} 21... Rxd1+ {[%clk 0:03:06.8]} 22. Rxd1 {[%clk
0:03:15.6]} 22... a5 {[%clk 0:02:58.8]} 23. Nd4 {[%clk 0:03:07]} 23... Rd8
{[%clk 0:02:46]} 24. Re1 {[%clk 0:03:03.7]} 24... Bc4 {[%clk 0:02:35]} 25. Nxf5
{[%clk 0:02:50.9]} 25... Rd2 {[%clk 0:02:28]} 26. Bc1 {[%clk 0:02:41.2]} 26...
Rc2 {[%clk 0:02:17.2]} 27. h4 {[%clk 0:02:29.3]} 27... Bd5 {[%clk 0:02:04.9]}
28. Rg1 {[%clk 0:02:16.9]} 28... Bxg1 {[%clk 0:01:59.7]} 0-1

[Event "Live Chess"]
[Site "Chess.com"]
[Date "2023.05.21"]
[Round "-"]
[White "rideuv21"]
[Black "AbilifyXL"]
[Result "0-1"]
[WhiteElo "1790"]
[BlackElo "1968"]
[TimeControl "300"]
[EndTime "5:31:56 PDT"]
[Termination "AbilifyXL won by resignation"]

1. e4 {[%clk 0:04:59]} 1... d5 {[%clk 0:04:59.9]} 2. d4 {[%clk 0:04:57.6]} 2...
c6 {[%clk 0:04:59.3]} 3. exd5 {[%clk 0:04:53.3]} 3... cxd5 {[%clk 0:04:58.5]} 4.
c4 {[%clk 0:04:53.2]} 4... Nf6 {[%clk 0:04:57.9]} 5. Nc3 {[%clk 0:04:51.2]} 5...
Nc6 {[%clk 0:04:57]} 6. Nf3 {[%clk 0:04:48.2]} 6... Bg4 {[%clk 0:04:55.7]} 7.
Be2 {[%clk 0:04:46.2]} 7... e6 {[%clk 0:04:51.3]} 8. O-O {[%clk 0:04:39.2]} 8...
Be7 {[%clk 0:04:49.2]} 9. c5 {[%clk 0:04:31.5]} 9... O-O {[%clk 0:04:46]} 10. h3
{[%clk 0:04:24.2]} 10... Bxf3 {[%clk 0:04:43]} 11. Bxf3 {[%clk 0:04:24.1]} 11...
b6 {[%clk 0:04:41.8]} 12. Be3 {[%clk 0:04:18.2]} 12... bxc5 {[%clk 0:04:40.1]}
13. dxc5 {[%clk 0:04:18.1]} 13... Qa5 {[%clk 0:04:22.8]} 14. a3 {[%clk
0:04:02.2]} 14... Ne5 {[%clk 0:04:17.9]} 15. b4 {[%clk 0:03:51.9]} 15... Nxf3+
{[%clk 0:04:13]} 16. Qxf3 {[%clk 0:03:43.6]} 16... Qc7 {[%clk 0:04:11.2]} 17.
Rfe1 {[%clk 0:03:37.7]} 17... Rfd8 {[%clk 0:04:05.8]} 18. Bf4 {[%clk 0:03:34.5]}
18... Qc6 {[%clk 0:04:01.9]} 19. Rac1 {[%clk 0:03:23.3]} 19... h6 {[%clk
0:03:58]} 20. h4 {[%clk 0:03:21.5]} 20... Rac8 {[%clk 0:03:39.4]} 21. Be3 {[%clk
0:03:11.2]} 21... d4 {[%clk 0:03:34.6]} 22. Qxc6 {[%clk 0:03:04.7]} 22... Rxc6
{[%clk 0:03:33.6]} 23. Na4 {[%clk 0:02:58.7]} 23... dxe3 {[%clk 0:03:31.7]} 24.
Rxe3 {[%clk 0:02:57.8]} 24... Nd5 {[%clk 0:03:29.8]} 25. Rd3 {[%clk 0:02:54.8]}
25... Rb8 {[%clk 0:03:19.8]} 26. Re1 {[%clk 0:02:48.6]} 26... Bxh4 {[%clk
0:03:16.4]} 27. g3 {[%clk 0:02:39.4]} 27... Bf6 {[%clk 0:03:15]} 28. f4 {[%clk
0:02:31.2]} 28... a5 {[%clk 0:03:12.9]} 29. bxa5 {[%clk 0:02:26.8]} 29... Ra8
{[%clk 0:03:02]} 30. Nb6 {[%clk 0:02:21.4]} 30... Rxa5 {[%clk 0:02:58.6]} 31.
Nxd5 {[%clk 0:02:14.8]} 31... exd5 {[%clk 0:02:57.3]} 32. Rxd5 {[%clk
0:02:14.1]} 32... Rcxc5 {[%clk 0:02:55.7]} 33. Rxc5 {[%clk 0:02:11]} 33... Rxc5
{[%clk 0:02:55.1]} 34. a4 {[%clk 0:02:10.2]} 34... Ra5 {[%clk 0:02:48.1]} 35.
Re4 {[%clk 0:02:08.8]} 35... g6 {[%clk 0:02:44]} 36. Kf2 {[%clk 0:02:07.1]}
36... h5 {[%clk 0:02:42.7]} 37. Kf3 {[%clk 0:02:06.2]} 37... Bc3 {[%clk
0:02:41.1]} 38. Ke3 {[%clk 0:02:02.9]} 38... Kg7 {[%clk 0:02:37.9]} 39. Kd3
{[%clk 0:02:02]} 39... Bf6 {[%clk 0:02:28.9]} 40. Kc2 {[%clk 0:01:59.9]} 40...
Bd8 {[%clk 0:02:21.7]} 41. Kb3 {[%clk 0:01:56.7]} 41... Kf6 {[%clk 0:02:19.7]}
42. Re8 {[%clk 0:01:55.7]} 42... Bb6 {[%clk 0:02:10.9]} 43. Kb4 {[%clk
0:01:51.6]} 43... Ra7 {[%clk 0:02:07.6]} 44. Kb5 {[%clk 0:01:49.6]} 44... Bf2
{[%clk 0:02:06.4]} 45. a5 {[%clk 0:01:46.7]} 45... Bxg3 {[%clk 0:02:03.9]} 46.
a6 {[%clk 0:01:39.3]} 46... Bf2 {[%clk 0:02:00.2]} 47. Re2 {[%clk 0:01:31.1]}
47... Bg1 {[%clk 0:01:56.5]} 48. Re1 {[%clk 0:01:25.9]} 48... Bd4 {[%clk
0:01:52.8]} 49. Rd1 {[%clk 0:01:24.6]} 49... Be3 {[%clk 0:01:49.8]} 50. Rd3
{[%clk 0:01:23]} 50... Bxf4 {[%clk 0:01:48]} 51. Kb6 {[%clk 0:01:21.8]} 51...
Rxa6+ {[%clk 0:01:34.9]} 52. Kxa6 {[%clk 0:01:18.9]} 52... Kf5 {[%clk
0:01:33.3]} 53. Kb5 {[%clk 0:01:18.2]} 53... h4 {[%clk 0:01:30.9]} 54. Kc4
{[%clk 0:01:16.8]} 54... g5 {[%clk 0:01:30]} 55. Kd4 {[%clk 0:01:15.3]} 55... g4
{[%clk 0:01:28.7]} 56. Rd1 {[%clk 0:01:14]} 56... h3 {[%clk 0:01:27.2]} 57. Kd3
{[%clk 0:01:12.1]} 57... g3 {[%clk 0:01:26.3]} 58. Ke2 {[%clk 0:01:11.7]} 58...
Kg4 {[%clk 0:01:24.3]} 59. Rd8 {[%clk 0:01:05.6]} 59... h2 {[%clk 0:01:19.3]}
60. Rg8+ {[%clk 0:01:01.5]} 60... Bg5 {[%clk 0:01:18.2]} 61. Rh8 {[%clk
0:00:59.5]} 61... Bh4 {[%clk 0:01:17]} 0-1